bitfinex/quotes_BTCUSD_20220212
["timestamp","ask_amount","ask_price","bid_price","bid_amount"]
[1644641031516,0.26902195,42350.0,42345.0,0.2006535]
[1644641031713,0.26902195,42350.0,42345.0,0.20116372]
[1644641032322,0.04899357,42352.0,42345.0,0.20116372]
[1644641032723,0.04899357,42352.0,42345.0,0.2006535]
[1644641032921,0.04899357,42352.0,42346.0,0.00051022]
[1644641033321,0.26246203,42352.0,42346.0,0.00051022]
[1644641033922,0.26246203,42352.0,42345.0,0.2006535]
[1644641034125,0.26246203,42352.0,42347.0,0.00051022]
[1644641035124,0.27128808,42351.0,42345.0,0.2006535]
[1644641035326,0.26246203,42352.0,42343.0,0.20084988]
[1644641035524,0.26246203,42352.0,42343.0,0.2006535]
[1644641035525,0.26076846,42352.0,42343.0,0.2006535]
[1644641035724,0.26076846,42352.0,42343.0,0.20084988]
[1644641035971,0.26651822,42351.0,42343.0,0.20084988]
[1644641036172,0.26076846,42352.0,42344.0,0.2006535]
[1644641036373,0.26076846,42352.0,42344.0,0.20084988]
[1644641036574,0.26076846,42352.0,42344.0,0.2006535]
[1644641036776,0.27052755,42351.0,42344.0,0.2006535]
[1644641036976,0.0473,42350.0,42343.0,0.00019638]
[1644641037177,0.24792589,42350.0,42342.0,0.13129638]
[1644641037372,0.34792589,42350.0,42342.0,0.13129638]
[1644641037774,0.25734612,42348.0,42344.0,0.00050979]
[1644641037975,0.0473,42347.0,42344.0,0.00050979]
[1644641038176,0.0973,42347.0,42344.0,0.00050979]
[1644641038376,0.22553129,42346.0,42344.0,0.00050979]
[1644641038577,0.0473,42345.0,42344.0,0.00050979]
[1644641038777,0.0473,42345.0,42343.0,0.00019638]
[1644641039076,0.26960146,42344.0,42343.0,0.00050979]
[1644641039279,0.31690146,42344.0,42343.0,0.00050979]
[1644641039923,0.31690146,42344.0,42342.0,0.13129638]
[1644641040222,0.31690146,42344.0,42342.0,0.1311]
[1644641041224,0.31690146,42344.0,42342.0,0.13102162]
[1644641041424,0.26825153,42343.0,42342.0,0.13102162]
[1644641041624,0.31555153,42343.0,42342.0,0.13102162]
[1644641042625,0.0473,42343.0,42342.0,0.13102162]
[1644641043481,0.3177597,42349.0,42342.0,0.13102162]
[1644641043682,0.45822533,42351.0,42342.0,0.131218]
[1644641043880,0.72684026,42351.0,42342.0,0.131218]
[1644641044081,0.20062589,42349.0,42342.0,0.131218]
[1644641044280,0.28685121,42348.0,42342.0,0.131218]
[1644641045083,0.28685121,42348.0,42343.0,0.00050958]
[1644641045283,0.28685121,42348.0,42343.0,0.00070596]
[1644641045882,0.23155381,42349.0,42343.0,0.00070596]
[1644641046484,0.50822533,42351.0,42343.0,0.00070596]
[1644641046785,0.1169,42352.0,42343.0,0.00070596]
[1644641046786,0.31752589,42352.0,42343.0,0.00070596]
[1644641047245,0.31752589,42352.0,42343.0,0.00019638]
[1644641047434,0.31752589,42352.0,42345.0,0.00050957]
[1644641047435,0.50797827,42352.0,42345.0,0.00050957]
[1644641047735,0.30735238,42352.0,42345.0,0.00050957]
[1644641048133,0.19045238,42352.0,42345.0,0.27788362]
[1644641048333,0.19045238,42352.0,42344.0,0.21599471]
[1644641048537,0.19045238,42352.0,42346.0,0.00050957]
[1644641049537,0.19045238,42352.0,42344.0,0.21599471]
[1644641049737,0.36136833,42355.0,42347.0,0.20909343]
[1644641049937,0.36136833,42355.0,42344.0,0.21579833]
[1644641049938,0.36136833,42355.0,42344.0,0.16371555]
[1644641050135,0.55,42354.0,42350.0,0.328585]
[1644641050335,0.55,42354.0,42349.0,0.06714656]
[1644641050336,0.0016915,42351.0,42349.0,0.06714656]
[1644641050536,0.0016915,42351.0,42349.0,0.39573156]
[1644641050737,0.0016915,42351.0,42349.0,0.06714656]
[1644641051286,0.0016915,42351.0,42346.0,0.24564453]
[1644641051486,0.0016915,42351.0,42344.0,0.00019638]
[1644641051686,0.0016915,42351.0,42343.0,0.00019638]
[1644641051887,0.0016915,42351.0,42342.0,0.13102162]
[1644641051888,0.0016915,42351.0,42342.0,0.131218]
[1644641052386,0.26563631,42350.0,42342.0,0.131218]
[1644641052586,0.26563631,42350.0,42344.0,0.2285112]
[1644641052787,0.26563631,42350.0,42346.0,0.07915502]
[1644641053188,0.0016915,42351.0,42346.0,0.07915502]
[1644641053388,0.00202626,42351.0,42346.0,0.07915502]
[1644641054188,0.00202626,42351.0,42350.0,0.22923019]
[1644641054387,0.0016915,42351.0,42350.0,0.22923019]
[1644641054835,0.00220101,42351.0,42346.0,0.07915502]
[1644641055634,0.0016915,42351.0,42346.0,0.07915502]
[1644641055835,0.00220101,42351.0,42350.0,0.20921425]
[1644641056233,0.00220101,42351.0,42350.0,0.2090969]
[1644641056836,0.0016915,42351.0,42350.0,0.5376819]
[1644641057035,0.0016915,42351.0,42350.0,0.2090969]
[1644641057237,0.0016915,42351.0,42350.0,0.5376819]
[1644641057435,0.0016915,42351.0,42350.0,0.2090969]
[1644641057635,0.0016915,42351.0,42350.0,0.5376819]
[1644641058037,0.0016915,42351.0,42350.0,0.2090969]
[1644641058236,0.0016915,42351.0,42350.0,0.5376819]
[1644641058479,0.0016915,42351.0,42350.0,0.2090969]
[1644641058880,0.0016915,42351.0,42350.0,0.5376819]
[1644641059083,0.0016915,42351.0,42350.0,0.2090969]
[1644641059281,0.0016915,42351.0,42350.0,0.5376819]
[1644641059481,0.0016915,42351.0,42350.0,0.2090969]
[1644641059683,0.0016915,42351.0,42350.0,0.5376819]
[1644641059889,0.0016915,42351.0,42350.0,0.2090969]
[1644641060086,0.00050951,42353.0,42350.0,0.2090969]
[1644641060285,0.00050951,42353.0,42351.0,0.328585]
[1644641060484,0.20062589,42356.0,42351.0,0.328585]
[1644641060686,0.0005095,42354.0,42351.0,0.328585]
[1644641061586,0.20062589,42356.0,42351.0,0.328585]
[1644641061787,0.20062589,42356.0,42355.0,0.08460695]
[1644641061986,0.20062589,42356.0,42355.0,0.41319195]
[1644641062428,0.20062589,42356.0,42355.0,0.328585]
[1644641063926,0.251255,42358.0,42356.0,0.328585]
[1644641064127,0.251255,42358.0,42350.0,0.2090969]
[1644641064128,0.20554413,42355.0,42351.0,0.39830404]
[1644641064326,0.20554413,42355.0,42351.0,0.06918304]
[1644641064327,0.40633966,42355.0,42351.0,0.06918304]
[1644641064527,0.40633966,42355.0,42352.0,0.329121]
[1644641066472,0.20554413,42355.0,42352.0,0.329121]
[1644641066775,0.20126817,42356.0,42354.0,0.329121]
[1644641066973,0.00047264,42356.0,42355.0,0.676421]
[1644641067372,0.00047264,42356.0,42355.0,0.88576222]
[1644641067576,0.20079553,42361.0,42355.0,0.376421]
[1644641067773,0.20079553,42361.0,42360.0,0.06435397]
[1644641067973,0.20079553,42361.0,42360.0,0.329121]
[1644641068375,0.20079553,42364.0,42360.0,0.329121]
[1644641068575,0.20079553,42366.0,42361.0,0.329121]
[1644641068777,0.20079553,42364.0,42361.0,0.329121]
[1644641068975,0.20079553,42363.0,42361.0,0.329121]
[1644641069577,0.42094814,42364.0,42361.0,0.329121]
[1644641070424,0.20079553,42363.0,42361.0,0.329121]
[1644641071827,0.47142398,42364.0,42355.0,0.0473]
[1644641072028,0.20073424,42360.0,42350.0,0.79124854]
[1644641072426,0.20073424,42360.0,42351.0,0.5]
[1644641072830,0.00048903,42358.0,42351.0,0.68615067]
[1644641073027,0.00048903,42358.0,42351.0,0.18615067]
[1644641073670,0.20073424,42360.0,42351.0,0.18615067]
[1644641073873,0.23487046,42357.0,42352.0,0.329121]
[1644641074071,0.23487046,42357.0,42356.0,0.41611348]
[1644641074672,0.23487046,42357.0,42352.0,0.329121]
[1644641074875,0.23438143,42357.0,42352.0,0.329121]
[1644641075077,0.23438143,42357.0,42350.0,0.29124854]
[1644641075273,0.23438143,42357.0,42348.0,0.1]
[1644641075576,0.23438143,42357.0,42349.0,0.329121]
[1644641075774,0.23438143,42357.0,42349.0,0.429121]
[1644641076174,0.00047626,42355.0,42349.0,0.1]
[1644641076375,0.00047626,42355.0,42350.0,0.329121]
[1644641076574,0.00047626,42355.0,42349.0,0.1]
[1644641076976,0.00047626,42355.0,42350.0,0.329121]
[1644641077229,0.23438143,42357.0,42348.0,0.23722628]
[1644641077425,0.00047626,42355.0,42348.0,0.23722628]
[1644641077725,0.00047626,42355.0,42353.0,0.0745654]
[1644641078527,0.23438143,42357.0,42353.0,0.0745654]
[1644641078827,0.00047834,42356.0,42353.0,0.0745654]
[1644641079628,0.23438143,42357.0,42353.0,0.0745654]
[1644641079829,0.23485977,42357.0,42353.0,0.0745654]
[1644641080028,0.23485977,42357.0,42352.0,0.08117056]
[1644641080734,0.23485977,42357.0,42350.0,0.29149883]
[1644641080981,0.23438143,42357.0,42350.0,0.00133526]
[1644641081182,0.43559401,42357.0,42350.0,0.00133526]
[1644641081382,0.43559401,42357.0,42351.0,0.329121]
[1644641081581,0.43559401,42357.0,42350.0,0.00133526]
[1644641081981,0.43511567,42357.0,42350.0,0.00133526]
[1644641082382,0.00047788,42356.0,42350.0,0.00133526]
[1644641082781,0.22125589,42355.0,42350.0,0.00133526]
[1644641082980,0.22125589,42355.0,42351.0,0.329121]
[1644641083181,0.22125589,42355.0,42350.0,0.00133526]
[1644641083384,0.22125589,42355.0,42351.0,0.329121]
[1644641083582,0.22173377,42355.0,42351.0,0.329121]
[1644641083882,0.22173377,42355.0,42350.0,0.00133526]
[1644641084083,0.22173377,42355.0,42351.0,0.329121]
[1644641084283,0.00047788,42355.0,42351.0,0.329121]
[1644641084482,0.28438143,42357.0,42351.0,0.329121]
[1644641084742,0.00047788,42355.0,42352.0,0.329121]
[1644641084934,0.00047788,42355.0,42352.0,0.60693063]
[1644641085331,0.00047788,42355.0,42352.0,0.83973581]
[1644641085732,0.05,42357.0,42352.0,0.83973581]
[1644641085936,0.00047798,42356.0,42352.0,0.83973581]
[1644641086331,0.00047798,42356.0,42354.0,0.329121]
[1644641086739,0.00047798,42356.0,42355.0,0.06788592]
[1644641086932,0.05,42357.0,42356.0,0.329121]
[1644641087133,0.05047798,42357.0,42356.0,0.329121]
[1644641088134,0.05,42357.0,42356.0,0.329121]
[1644641089283,0.04974575,42357.0,42356.0,0.329121]
[1644641091685,0.04974575,42357.0,42356.0,0.429121]
[1644641096377,0.04974575,42357.0,42356.0,0.329121]
[1644641096574,0.04974575,42357.0,42356.0,0.429121]
[1644641097180,0.04974575,42357.0,42356.0,0.329121]
[1644641097378,0.04974575,42357.0,42355.0,0.00119877]
[1644641097577,0.04974575,42357.0,42356.0,0.329121]
[1644641099377,0.04974575,42357.0,42355.0,0.00119877]
[1644641099578,0.04974575,42357.0,42356.0,0.329121]
[1644641099830,0.25047999,42357.0,42356.0,0.329121]
[1644641100030,0.25047999,42357.0,42355.0,0.00119877]
[1644641100235,0.46367662,42356.0,42355.0,0.00119877]
[1644641100429,0.46367662,42356.0,42350.0,0.00108816]
[1644641100828,0.20073424,42355.0,42350.0,0.00108816]
[1644641101034,0.25989211,42353.0,42350.0,0.00108816]
[1644641101233,0.49057715,42352.0,42350.0,0.00108816]
[1644641102029,0.20950081,42352.0,42350.0,0.00108816]
[1644641104087,0.20950081,42352.0,42351.0,0.329121]
[1644641104487,0.20950081,42352.0,42350.0,0.00108816]
[1644641104690,0.20950081,42352.0,42351.0,0.329121]
[1644641104892,0.20950081,42352.0,42350.0,0.00108816]
[1644641105089,0.20950081,42352.0,42351.0,0.329121]
[1644641105288,0.20950081,42352.0,42350.0,0.00108816]
[1644641105489,0.00100238,42351.0,42350.0,0.00108816]
[1644641106289,0.00100238,42351.0,42350.0,0.33020916]
[1644641106488,0.00100238,42351.0,42350.0,0.00108816]
[1644641108131,0.00100238,42351.0,42350.0,0.33020916]
[1644641108331,0.00100238,42351.0,42350.0,0.00108816]
[1644641108733,0.00100238,42351.0,42350.0,0.33020916]
[1644641109034,0.02159876,42351.0,42350.0,0.33020916]
[1644641109233,0.04219514,42351.0,42350.0,0.00108816]
[1644641109438,0.04219514,42351.0,42350.0,0.33020916]
[1644641109636,0.04219514,42351.0,42350.0,0.00108816]
[1644641110035,0.04211372,42351.0,42346.0,0.3314184]
[1644641110234,0.04211372,42351.0,42346.0,0.3904644]
[1644641110436,0.04211372,42351.0,42350.0,0.00142863]
[1644641110835,0.04211372,42351.0,42350.0,0.33054963]
[1644641111080,0.04211372,42351.0,42350.0,0.00142863]
[1644641111281,0.04211372,42351.0,42350.0,0.33054963]
[1644641111882,0.04211372,42351.0,42350.0,0.00142863]
[1644641112085,0.04211372,42351.0,42350.0,0.33054963]
[1644641112584,0.04211372,42351.0,42350.0,0.00142863]
[1644641112885,0.04211372,42351.0,42350.0,0.33054963]
[1644641113085,0.04211372,42351.0,42350.0,0.43054963]
[1644641113485,0.04211372,42351.0,42350.0,0.71923181]
[1644641114384,0.03708309,42351.0,42350.0,0.76653181]
[1644641114593,0.04974575,42357.0,42351.0,0.73677755]
[1644641114829,0.04974575,42357.0,42354.0,0.329121]
[1644641115029,0.04974575,42357.0,42355.0,0.38477498]
[1644641115227,0.04974575,42357.0,42356.0,0.61585675]
[1644641115428,0.04974575,42357.0,42356.0,1.31528031]
[1644641115830,0.04974575,42357.0,42356.0,1.08585]
[1644641116328,0.04974575,42357.0,42356.0,0.84094366]
[1644641116727,0.04974575,42357.0,42356.0,0.55420791]
[1644641117427,0.04974575,42357.0,42356.0,0.83285029]
[1644641117830,0.04974575,42357.0,42356.0,0.55420791]
[1644641119679,0.04974575,42357.0,42356.0,0.8352557]
[1644641120081,0.05076035,42357.0,42356.0,0.8352557]
[1644641121081,0.05076035,42357.0,42356.0,0.45420791]
[1644641122332,0.05076035,42357.0,42356.0,0.7389787]
[1644641123935,0.05076035,42357.0,42356.0,0.6916787]
[1644641124134,0.05076035,42357.0,42356.0,0.40690791]
[1644641125735,0.04974575,42357.0,42356.0,0.40690791]
[1644641126178,0.04974575,42357.0,42356.0,0.329121]
[1644641127381,0.04974575,42357.0,42356.0,0.40719827]
[1644641130233,0.07974575,42357.0,42356.0,0.40719827]
[1644641132230,0.07974575,42357.0,42356.0,0.50719827]
[1644641132830,0.07974575,42357.0,42356.0,0.79539757]
[1644641135700,0.07974575,42357.0,42356.0,0.488149]
[1644641135898,0.07974575,42357.0,42356.0,0.429121]
[1644641136997,0.07974575,42357.0,42356.0,0.49439049]
[1644641137831,0.07974575,42357.0,42356.0,1.00071849]
[1644641138030,0.07974575,42357.0,42356.0,1.34261215]
[1644641138236,0.00047795,42359.0,42357.0,0.76030726]
[1644641138530,0.00023102,42366.0,42358.0,0.426421]
[1644641138531,0.00023102,42360.0,42358.0,0.426421]
[1644641138731,0.00047795,42360.0,42359.0,0.329121]
[1644641139733,0.00023102,42365.0,42359.0,0.329121]
[1644641139934,0.00047794,42362.0,42359.0,0.329121]
[1644641140133,0.3,42361.0,42358.0,0.329102]
[1644641140333,0.00047794,42362.0,42358.0,0.329102]
[1644641140534,0.00070896,42362.0,42358.0,0.329102]
[1644641140838,0.00023102,42362.0,42358.0,0.429102]
[1644641141085,0.00047794,42362.0,42357.0,0.01030726]
[1644641141281,0.20073424,42359.0,42357.0,0.01030726]
[1644641141481,0.20073424,42358.0,42357.0,0.01030726]
[1644641142079,0.0473,42359.0,42357.0,0.01030726]
[1644641142280,0.29808236,42359.0,42357.0,0.01030726]
[1644641142480,0.2664521,42358.0,42357.0,0.01030726]
[1644641143281,0.56109817,42358.0,42357.0,0.01030726]
[1644641145641,0.56202835,42358.0,42357.0,0.01030726]
[1644641145841,0.8130169,42358.0,42357.0,0.01030726]
[1644641146843,0.26738228,42358.0,42357.0,0.01030726]
[1644641150987,0.31468228,42358.0,42357.0,0.01030726]
[1644641154435,0.31468228,42358.0,42357.0,0.33940926]
[1644641154633,0.31468228,42358.0,42357.0,0.01030726]
[1644641155234,0.31468228,42358.0,42357.0,0.33940926]
[1644641155436,0.31468228,42358.0,42357.0,0.01030726]
[1644641156579,0.31468228,42358.0,42357.0,0.33940926]
[1644641156780,0.31468228,42358.0,42357.0,0.01030726]
[1644641157182,0.51548438,42358.0,42357.0,0.33940926]
[1644641157380,0.51548438,42358.0,42357.0,0.01030726]
[1644641157582,0.00093018,42358.0,42357.0,0.33940926]
[1644641157781,0.20173201,42358.0,42357.0,0.01030726]
[1644641157983,0.00093018,42358.0,42357.0,0.33940926]
[1644641158183,0.00093018,42358.0,42357.0,0.01030726]
[1644641158782,0.20658613,42358.0,42357.0,0.01030726]
[1644641160032,0.20658613,42358.0,42357.0,0.33940926]
[1644641160233,0.20658613,42358.0,42357.0,0.01030726]
[1644641160432,0.20658613,42358.0,42357.0,0.33940926]
[1644641160632,0.20658613,42358.0,42357.0,0.01030726]
[1644641160832,0.20658613,42358.0,42357.0,0.33940926]
[1644641161033,0.00093018,42358.0,42357.0,0.33940926]
[1644641161436,0.20173522,42358.0,42357.0,0.33940926]
[1644641161836,0.00093018,42358.0,42357.0,0.33940926]
[1644641169943,0.69727927,42358.0,42357.0,0.01021153]
[1644641170145,0.74988078,42358.0,42357.0,0.01021153]
[1644641170343,1.00086933,42358.0,42357.0,0.01021153]
[1644641170743,0.74988078,42358.0,42357.0,0.01021153]
[1644641173084,0.52053125,42358.0,42357.0,0.01021153]
[1644641174085,1.08642037,42358.0,42357.0,0.01021153]
[1644641174285,0.75731837,42358.0,42357.0,0.01021153]
[1644641178131,0.52053125,42358.0,42357.0,0.01021153]
[1644641183335,0.47323125,42358.0,42357.0,0.01021153]
[1644641184435,0.77416794,42358.0,42357.0,0.01021153]
[1644641184935,0.50797342,42358.0,42357.0,0.01021153]
[1644641185139,0.20703673,42358.0,42357.0,0.01021153]
[1644641186582,0.20703673,42358.0,42357.0,0.33931353]
[1644641186783,0.45813573,42358.0,42357.0,0.01021153]
[1644641188385,0.00093018,42358.0,42357.0,0.33931353]
[1644641188586,0.20179692,42358.0,42357.0,0.33931353]
[1644641188984,0.20179692,42358.0,42357.0,0.01021153]
[1644641188985,0.00093018,42358.0,42357.0,0.01021153]
[1644641189186,0.19984696,42358.0,42357.0,0.01021153]
[1644641189385,0.19984696,42358.0,42357.0,0.33931353]
[1644641189585,0.19984696,42358.0,42357.0,0.01021153]
[1644641190338,0.19984696,42358.0,42357.0,0.33931353]
[1644641190735,0.45094596,42358.0,42357.0,0.33931353]
[1644641190934,0.00093018,42358.0,42357.0,0.01021153]
[1644641192136,0.25202918,42358.0,42357.0,0.33931353]
[1644641192336,0.00093018,42358.0,42357.0,0.01021153]
[1644641192534,0.00093018,42358.0,42357.0,0.33931353]
[1644641192734,0.00093018,42358.0,42357.0,0.01021153]
[1644641193135,0.25202918,42358.0,42357.0,0.01021153]
[1644641193339,0.00093018,42358.0,42357.0,0.01021153]
[1644641193579,0.25202918,42358.0,42357.0,0.01021153]
[1644641193779,0.25202918,42358.0,42357.0,0.33931353]
[1644641194380,0.25202231,42358.0,42357.0,0.33920456]
[1644641194581,0.00093018,42358.0,42357.0,0.33920456]
[1644641195782,0.00093018,42358.0,42357.0,0.01010256]
[1644641195981,0.00093018,42358.0,42357.0,0.33920456]
[1644641196183,0.00093018,42358.0,42357.0,0.01010256]
[1644641199841,0.25202231,42358.0,42357.0,0.01010256]
[1644641201186,0.25202231,42358.0,42357.0,0.33920456]
[1644641201387,0.00093018,42358.0,42357.0,0.33920456]
[1644641201784,0.00093018,42358.0,42357.0,0.01010256]
[1644641201988,0.00093018,42358.0,42357.0,0.33920456]
[1644641202190,0.00093018,42358.0,42357.0,0.01010256]
[1644641202386,0.00093018,42358.0,42357.0,0.33920456]
[1644641202587,0.00093018,42358.0,42357.0,0.01010256]
[1644641202888,0.00093018,42358.0,42357.0,0.33920456]
[1644641203086,0.00093018,42358.0,42357.0,0.01010256]
[1644641203289,0.25202231,42358.0,42357.0,0.33920456]
[1644641203487,0.00093018,42358.0,42357.0,0.33920456]
[1644641203688,0.25202231,42358.0,42357.0,0.01010256]
[1644641203888,0.25202231,42358.0,42357.0,0.33920456]
[1644641204088,0.25202231,42358.0,42357.0,0.01010256]
[1644641204289,0.00093018,42358.0,42357.0,0.33920456]
[1644641204490,0.00093018,42358.0,42357.0,0.01010256]
[1644641204731,0.00093018,42358.0,42357.0,0.33920456]
[1644641204932,0.00093018,42358.0,42357.0,0.01010256]
[1644641205132,0.00093018,42358.0,42357.0,0.33920456]
[1644641205836,0.25202231,42358.0,42357.0,0.33920456]
[1644641206733,0.00093018,42358.0,42357.0,0.33920456]
[1644641206934,0.00093018,42358.0,42357.0,0.01010256]
[1644641207137,0.00093018,42358.0,42357.0,0.33920456]
[1644641207334,0.25202231,42358.0,42357.0,0.01010256]
[1644641207534,0.25202231,42358.0,42357.0,0.33920456]
[1644641207735,0.25202231,42358.0,42357.0,0.01010256]
[1644641207937,0.25202231,42358.0,42357.0,0.33920456]
[1644641208136,0.00093018,42358.0,42357.0,0.01010256]
[1644641208484,0.25202231,42358.0,42357.0,0.30553666]
[1644641209481,0.00093018,42358.0,42357.0,0.30553666]
[1644641210384,0.25202231,42358.0,42357.0,0.30553666]
[1644641210785,0.00093018,42358.0,42357.0,0.30553666]
[1644641210988,0.25202231,42358.0,42357.0,0.30553666]
[1644641213838,0.00093018,42358.0,42357.0,0.30553666]
[1644641215737,0.30093669,42360.0,42357.0,0.30553666]
[1644641215738,0.30241923,42360.0,42357.0,0.30553666]
[1644641216588,0.30190837,42360.0,42357.0,0.30553666]
[1644641216789,0.25110008,42358.0,42357.0,0.30553666]
[1644641217787,0.2510998,42358.0,42357.0,0.30553666]
[1644641217988,0.30241923,42360.0,42357.0,0.30553666]
[1644641218189,0.30241923,42360.0,42356.0,0.0690597]
[1644641218390,0.30241923,42360.0,42357.0,0.329112]
[1644641218588,0.25110086,42358.0,42357.0,0.329112]
[1644641218989,0.30241923,42360.0,42357.0,0.329112]
[1644641218990,0.30190837,42360.0,42357.0,0.329112]
[1644641219190,0.25110283,42358.0,42357.0,0.329112]
[1644641219836,0.30241923,42360.0,42357.0,0.329112]
[1644641220238,0.30241923,42360.0,42356.0,0.0690597]
[1644641220239,0.30190837,42360.0,42356.0,0.0690597]
[1644641220438,0.30190837,42360.0,42357.0,0.329112]
[1644641220638,0.30213939,42360.0,42357.0,0.329112]
[1644641221238,0.30213939,42360.0,42356.0,0.0690597]
[1644641221442,0.30213939,42360.0,42357.0,0.329112]
[1644641221639,0.30190837,42360.0,42357.0,0.329112]
[1644641221841,0.30213939,42360.0,42357.0,0.329112]
[1644641222642,0.30213939,42360.0,42353.0,0.329112]
[1644641222841,0.20089442,42354.0,42353.0,0.329112]
[1644641224788,0.20089442,42354.0,42351.0,0.329112]
[1644641224988,0.20089442,42354.0,42352.0,0.00019638]
[1644641225188,0.20089442,42354.0,42351.0,0.329112]
[1644641225587,0.20089442,42354.0,42352.0,0.08897492]
[1644641225789,0.20089442,42354.0,42352.0,0.00019638]
[1644641225991,0.2516289,42356.0,42353.0,0.329112]
[1644641226189,0.25111802,42355.0,42349.0,0.00019638]
[1644641226489,0.20090575,42353.0,42350.0,0.32930838]
[1644641226693,0.20090575,42353.0,42350.0,0.329112]
[1644641227091,0.20090575,42353.0,42350.0,0.67335231]
[1644641227339,0.20090575,42354.0,42350.0,0.87377473]
[1644641227740,0.20141664,42354.0,42351.0,0.60849999]
[1644641227937,0.20141664,42354.0,42351.0,0.27958437]
[1644641228338,0.20141664,42354.0,42351.0,0.33862837]
[1644641228536,0.20141664,42354.0,42351.0,0.53905079]
[1644641228537,0.20090575,42354.0,42351.0,0.53905079]
[1644641228737,0.200845,42353.0,42351.0,0.00019638]
[1644641228937,0.00051088,42355.0,42352.0,0.329112]
[1644641229138,0.00051088,42355.0,42351.0,0.00019638]
[1644641229341,0.00051088,42355.0,42352.0,0.329112]
[1644641229540,0.00051088,42355.0,42348.0,0.63382751]
[1644641229736,0.25111802,42356.0,42349.0,0.32930838]
[1644641229939,0.25111802,42356.0,42353.0,0.07314374]
[1644641230138,0.00051089,42354.0,42353.0,0.07314374]
[1644641230338,0.00051089,42354.0,42353.0,0.26552246]
[1644641230539,0.00051089,42354.0,42352.0,0.06549818]
[1644641230740,0.00051089,42354.0,42353.0,0.329134]
[1644641230984,0.25111802,42356.0,42351.0,0.329134]
[1644641231185,0.2516289,42356.0,42351.0,0.329134]
[1644641231385,0.2516289,42356.0,42350.0,0.00019638]
[1644641231587,0.2516289,42356.0,42351.0,0.329134]
[1644641231785,0.2516289,42356.0,42348.0,0.69287551]
[1644641231990,0.2516289,42356.0,42351.0,0.08421945]
[1644641232186,0.25111802,42356.0,42351.0,0.08421945]
[1644641232388,0.00051088,42354.0,42352.0,0.329134]
[1644641232587,0.00051088,42354.0,42351.0,0.329134]
[1644641233087,0.00051088,42354.0,42349.0,0.00019638]
[1644641233288,0.00051088,42354.0,42350.0,0.329134]
[1644641233489,0.25111802,42356.0,42350.0,0.329134]
[1644641233689,0.00051089,42354.0,42350.0,0.329134]
[1644641233990,0.00051089,42354.0,42350.0,0.41527851]
[1644641234189,0.00051089,42354.0,42350.0,0.08614451]
[1644641234391,0.00051089,42354.0,42351.0,0.329134]
[1644641234594,0.25111802,42356.0,42351.0,0.00019638]
[1644641234838,0.00051088,42354.0,42352.0,0.329138]
[1644641235738,0.00088001,42355.0,42352.0,0.329138]
[1644641236140,0.00139089,42355.0,42352.0,0.329138]
[1644641236338,0.00139089,42355.0,42350.0,0.329138]
[1644641236941,0.00088001,42355.0,42350.0,0.329138]
[1644641237339,0.00139089,42355.0,42349.0,0.00019638]
[1644641237538,0.00139089,42355.0,42348.0,0.41002719]
[1644641237939,0.00139089,42355.0,42348.0,0.15924438]
[1644641238141,0.25199803,42355.0,42348.0,0.15924438]
[1644641238340,0.00051089,42354.0,42348.0,0.05924438]
[1644641238784,0.20092794,42353.0,42350.0,0.20034595]
[1644641239084,0.20092794,42353.0,42351.0,0.329138]
[1644641239286,0.20092794,42353.0,42351.0,0.32933438]
[1644641239486,0.20092794,42353.0,42351.0,0.00019638]
[1644641239687,0.20092794,42353.0,42352.0,0.329138]
[1644641239884,0.20092794,42353.0,42351.0,0.329138]
[1644641240286,0.19931791,42354.0,42351.0,0.388182]
[1644641240489,0.19931791,42354.0,42352.0,0.329138]
[1644641240691,0.19880703,42354.0,42352.0,0.329138]
[1644641240887,0.19880703,42354.0,42352.0,0.32933438]
[1644641241088,0.19880703,42354.0,42352.0,0.329138]
[1644641241888,0.19880703,42354.0,42352.0,0.32933438]
[1644641242089,0.19880703,42354.0,42352.0,0.329138]
[1644641243143,0.00087909,42354.0,42352.0,0.329138]
[1644641245343,0.00087909,42354.0,42351.0,0.00019638]
[1644641245543,0.00087909,42354.0,42350.0,0.20034595]
[1644641245988,0.00087909,42354.0,42351.0,0.329138]
[1644641246189,0.00087909,42354.0,42351.0,0.32933438]
[1644641246389,0.00087909,42354.0,42352.0,0.329138]
[1644641246590,0.00087909,42354.0,42352.0,0.32933438]
[1644641246790,0.00087909,42354.0,42352.0,0.329138]
[1644641246990,0.00087909,42354.0,42350.0,0.329138]
[1644641247291,0.00087909,42354.0,42351.0,0.27767909]
[1644641247592,0.00087909,42354.0,42352.0,0.329138]
[1644641247791,0.00087909,42354.0,42352.0,0.32933438]
[1644641247992,0.00087909,42354.0,42352.0,0.00019638]
[1644641248192,0.25111802,42353.0,42352.0,0.329138]
[1644641248592,0.00087909,42354.0,42352.0,0.329138]
[1644641249394,0.00087909,42354.0,42349.0,0.329138]
[1644641249846,0.00087909,42354.0,42349.0,0.42933438]
[1644641250349,0.20092856,42353.0,42349.0,0.90590432]
[1644641251343,0.20092856,42353.0,42350.0,0.2003063]
[1644641251547,0.20126388,42353.0,42351.0,0.329138]
[1644641251746,0.20126388,42353.0,42351.0,0.32933438]
[1644641252544,0.20092856,42353.0,42351.0,0.32933438]
[1644641254388,0.20092856,42353.0,42352.0,0.329138]
[1644641254587,0.20092856,42353.0,42352.0,0.32933438]
[1644641254787,0.20092856,42353.0,42352.0,0.329138]
[1644641254988,0.25295682,42354.0,42352.0,0.329138]
[1644641255186,0.26045016,42353.0,42352.0,0.329138]
[1644641255787,0.00120937,42354.0,42352.0,0.329138]
[1644641255987,0.00120937,42354.0,42353.0,0.329138]
[1644641256189,0.00120937,42354.0,42351.0,0.329138]
[1644641256588,0.20092737,42353.0,42351.0,0.329138]
[1644641256991,0.20092737,42352.0,42351.0,0.329138]
[1644641257241,0.20092737,42352.0,42350.0,0.329138]
[1644641257437,0.20092737,42353.0,42350.0,0.329138]
[1644641257637,0.20092737,42353.0,42350.0,0.32933438]
[1644641258438,0.2587834,42351.0,42350.0,0.32933438]
[1644641259940,0.20092737,42353.0,42350.0,0.32933438]
[1644641260239,0.00051045,42353.0,42352.0,0.47154026]
[1644641260437,0.20143376,42353.0,42352.0,0.47154026]
[1644641261104,0.20092331,42353.0,42352.0,0.47154026]
[1644641261304,0.20092331,42353.0,42352.0,0.53058226]
[1644641261903,0.20092331,42353.0,42352.0,0.47154026]
[1644641262503,0.20092331,42353.0,42352.0,0.47173664]
[1644641262706,0.20092331,42353.0,42352.0,0.47154026]
[1644641265442,0.20202103,42353.0,42352.0,0.47154026]
[1644641270292,0.20092331,42353.0,42352.0,0.47154026]
[1644641276289,0.20092331,42353.0,42352.0,0.14240226]
[1644641276492,0.20092331,42353.0,42352.0,0.47154026]
[1644641279493,0.20092331,42353.0,42352.0,0.54224703]
[1644641280540,0.20092331,42353.0,42352.0,0.82849418]
[1644641280741,0.00120937,42354.0,42353.0,0.329138]
[1644641280941,0.00120937,42354.0,42353.0,0.52946428]